bitfinex/quotes_SOLUSD_20240711
["timestamp","ask_amount","ask_price","bid_price","bid_amount"]
[1720692426278,9.57860001,143.12,143.11,11.69]
[1720692426480,9.57860001,143.12,143.11,12.03]
[1720692427492,9.57860001,143.12,143.11,42.03]
[1720692428419,6.1282,143.15,143.11,42.03]
[1720692428600,6.1282,143.15,143.12,23.52]
[1720692428794,6.1282,143.15,143.12,53.52]
[1720692431689,15.6889,143.17,143.12,53.52]
[1720692432431,15.6889,143.17,143.16,0.17]
[1720692432711,15.6133,143.2,143.16,30.51]
[1720692433389,15.6133,143.2,143.18,0.17]
[1720692433589,15.6133,143.2,143.18,31.56646925]
[1720692433791,15.6133,143.2,143.18,54.57646925]
[1720692436518,15.6133,143.2,143.18,30.0]
[1720692436715,15.6133,143.2,143.16,1.5667002]
[1720692437108,15.6133,143.2,143.16,1.3967002]
[1720692438318,15.6133,143.2,143.17,0.17]
[1720692438514,15.6133,143.2,143.17,30.51]
[1720692438703,15.6133,143.2,143.18,1.39659595]
[1720692439021,15.6133,143.2,143.17,31.56659597]
[1720692440000,15.6133,143.2,143.17,30.17]
[1720692441723,15.6133,143.2,143.18,23.01]
[1720692441903,15.6133,143.2,143.19,0.17]
[1720692442923,15.6133,143.2,143.19,0.51]
[1720692443218,15.6133,143.2,143.19,30.51]
[1720692443415,6.1684,143.22,143.19,30.51]
[1720692443593,16.1775,143.24,143.19,30.51]
[1720692443793,16.1775,143.24,143.21,23.01]
[1720692446017,16.1775,143.24,143.19,30.51]
[1720692446900,16.1775,143.24,143.19,30.0]
[1720692447315,15.3935,143.22,143.19,30.0]
[1720692448318,15.3935,143.22,143.13,23.01]
[1720692448520,15.3935,143.22,143.14,30.0]
[1720692449019,15.3935,143.22,143.16,23.01]
[1720692449315,15.3935,143.22,143.17,0.17]
[1720692451241,15.3935,143.22,143.17,1.4983016]
[1720692451836,15.3935,143.22,143.17,1.3283016]
[1720692452319,15.3935,143.22,143.17,0.17]
[1720692452517,15.3935,143.22,143.17,1.32820884]
[1720692452717,15.3935,143.22,143.18,1.32811618]
[1720692452918,15.3935,143.22,143.17,0.17]
[1720692453121,15.3935,143.22,143.17,1.49822482]
[1720692454105,15.3935,143.22,143.16,0.17]
[1720692454305,15.3935,143.22,143.16,0.34]
[1720692454525,15.3935,143.22,143.16,0.17]
[1720692457228,15.3935,143.22,143.15,23.01]
[1720692458513,15.3935,143.22,143.16,0.17]
[1720692459528,15.3935,143.22,143.19,0.17]
[1720692459915,15.3935,143.22,143.16,0.34]
[1720692460118,15.3935,143.22,143.17,0.17]
[1720692460323,15.3935,143.22,143.17,0.51]
[1720692460539,15.3935,143.22,143.21,11.5]
[1720692462528,15.3935,143.22,143.17,0.51]
[1720692462733,15.3935,143.22,143.18,30.0]
[1720692470416,15.3935,143.22,143.19,0.17]
[1720692470621,15.3935,143.22,143.19,30.17]
[1720692471520,22.423,143.31,143.21,0.17]
[1720692471720,8.22721322,143.3,143.21,0.17]
[1720692471937,8.22721322,143.29,143.21,0.17]
[1720692472144,22.423,143.31,143.21,0.17]
[1720692472339,15.3069,143.29,143.21,0.17]
[1720692474324,8.22783879,143.28,143.21,0.17]
[1720692474531,15.3069,143.29,143.21,0.17]
[1720692474734,8.22783941,143.28,143.21,0.17]
[1720692474934,15.3069,143.29,143.21,0.17]
[1720692475238,8.22783313,143.28,143.21,0.17]
[1720692475446,15.3069,143.29,143.21,0.17]
[1720692475649,8.22806963,143.28,143.21,0.17]
[1720692475942,15.3069,143.29,143.21,0.17]
[1720692476141,8.22806901,143.28,143.21,0.17]
[1720692476345,15.3069,143.29,143.21,0.17]
[1720692476537,8.22806901,143.28,143.21,0.17]
[1720692476739,15.3069,143.29,143.21,0.17]
[1720692476949,8.22806963,143.28,143.21,0.17]
[1720692477241,15.3069,143.29,143.21,0.17]
[1720692477444,8.22800205,143.28,143.21,0.17]
[1720692477646,15.3069,143.29,143.21,0.17]
[1720692477829,8.22800205,143.28,143.21,0.17]
[1720692478029,15.3069,143.29,143.2,0.17]
[1720692478230,8.22820478,143.28,143.2,30.17]
[1720692478430,8.22820478,143.27,143.2,0.17]
[1720692478637,8.22820478,143.28,143.2,0.17]
[1720692478838,15.5536,143.26,143.19,22.99]
[1720692479038,15.5536,143.26,143.16,22.99]
[1720692479239,15.5536,143.26,143.18,30.0]
[1720692480428,0.17,143.25,143.18,30.0]
[1720692480633,8.22932879,143.25,143.18,30.0]
[1720692480844,15.5536,143.26,143.18,30.0]
[1720692481563,15.5536,143.26,143.19,0.34]
[1720692482941,15.5536,143.26,143.19,30.34]
[1720692484347,15.5536,143.26,143.2,0.17]
[1720692484544,15.5536,143.26,143.24,11.49]
[1720692485065,27.0656,143.3,143.25,11.49]
[1720692485234,8.22758461,143.29,143.25,11.49]
[1720692485435,19.71758461,143.28,143.23,11.49]
[1720692485663,11.49,143.27,143.22,11.49]
[1720692486352,11.49,143.27,143.2,30.0]
[1720692486553,11.49,143.27,143.22,11.49]
[1720692486755,15.5756,143.3,143.22,11.49]
[1720692486955,15.5756,143.3,143.23,11.49]
[1720692486956,11.49,143.27,143.23,11.49]
[1720692487155,11.49,143.27,143.22,11.49]
[1720692488468,11.49,143.26,143.16,21.4666]
[1720692488768,34.5941,143.25,143.2,11.49]
[1720692489138,34.5941,143.25,143.18,30.0]
[1720692489338,11.49,143.24,143.19,11.49]
[1720692490356,34.5941,143.25,143.18,30.0]
[1720692490659,11.49,143.24,143.19,11.49]
[1720692491048,34.5941,143.25,143.2,11.49]
[1720692491651,34.5941,143.25,143.16,0.17]
[1720692491961,11.49,143.24,143.19,11.49]
[1720692493259,23.1041,143.25,143.19,11.49]
[1720692493453,11.49,143.24,143.19,11.49]
[1720692493851,34.5941,143.25,143.2,11.49]
[1720692495064,11.49,143.24,143.19,11.49]
[1720692496447,23.1041,143.25,143.21,11.49]
[1720692497750,23.1041,143.25,143.22,11.49]
[1720692497947,23.1041,143.25,143.16,30.34]
[1720692497948,16.5575,143.25,143.16,30.34]
[1720692498153,16.5575,143.25,143.24,11.49]
[1720692498547,16.5575,143.25,143.17,0.17]
[1720692498771,16.5575,143.25,143.21,11.49]
[1720692498953,16.5575,143.25,143.18,0.17]
[1720692499155,28.0475,143.25,143.19,11.49]
[1720692499671,28.0475,143.25,143.2,11.49]
[1720692499874,16.5575,143.25,143.2,11.49]
[1720692500374,16.5575,143.25,143.18,0.17]
[1720692500557,16.5575,143.25,143.2,11.49]
[1720692500752,16.5575,143.25,143.19,11.49]
[1720692500956,16.5575,143.25,143.18,30.0]
[1720692501170,11.49,143.24,143.19,11.49]
[1720692502268,18.0266,143.24,143.19,11.49]
[1720692502467,11.49,143.23,143.18,11.49]
[1720692502670,11.49,143.21,143.1,15.9028]
[1720692502849,11.49,143.2,143.15,11.49]
[1720692503968,11.49,143.2,143.16,30.0]
[1720692504266,11.49,143.2,143.15,11.49]
[1720692504448,27.6167,143.2,143.15,11.49]
[1720692504644,6.1352,143.18,143.11,0.17]
[1720692504850,6.1352,143.18,143.14,11.49]
[1720692506182,6.1352,143.18,143.15,11.49]
[1720692506468,16.1267,143.2,143.16,11.49]
[1720692506970,16.1267,143.2,143.17,11.49]
[1720692507364,16.1267,143.2,143.16,11.49]
[1720692509348,16.1267,143.2,143.18,11.49]
[1720692509755,16.1267,143.2,143.15,11.49]
[1720692509973,16.1267,143.2,143.18,11.49]
[1720692511668,16.1267,143.2,143.16,30.0]
[1720692511971,16.1267,143.2,143.19,11.49]
[1720692513580,6.6432,143.22,143.19,11.49]
[1720692515275,15.7516,143.23,143.2,12.80887276]
[1720692515462,15.7516,143.23,143.2,11.49]
[1720692515779,15.7516,143.23,143.18,0.17]
[1720692515977,15.7516,143.23,143.19,11.49]
[1720692516161,15.7516,143.23,143.2,11.49]
[1720692516680,15.7516,143.23,143.19,11.49]
[1720692517264,15.7516,143.23,143.2,11.49]
[1720692517667,6.323,143.26,143.18,0.17]
[1720692518082,6.323,143.26,143.17,0.34]
[1720692518083,11.49,143.24,143.17,0.34]
[1720692518258,6.323,143.26,143.2,0.17]
[1720692518464,6.323,143.26,143.22,11.49]
[1720692518770,17.813,143.26,143.22,11.49]
[1720692519187,17.813,143.26,143.21,11.49]
[1720692520176,11.49,143.25,143.17,30.17]
[1720692520386,6.323,143.26,143.17,30.17]
[1720692520606,11.49,143.24,143.19,11.49]
[1720692520888,11.49,143.23,143.18,11.49]
[1720692523587,11.49,143.24,143.19,11.49]
[1720692524992,11.49,143.24,143.16,0.17]
[1720692525293,16.2538,143.22,143.18,11.49]
[1720692526585,16.2538,143.22,143.16,30.17]
[1720692526887,11.49,143.21,143.16,41.49]
[1720692527989,11.49,143.19,143.16,30.0]
[1720692528383,11.49,143.19,143.14,11.49]
[1720692528776,11.49,143.2,143.15,11.49]
[1720692529170,11.49,143.2,143.1,6.4411]
[1720692529383,11.49,143.17,143.11,30.0]
[1720692529585,27.3586,143.17,143.11,30.0]
[1720692529991,27.3586,143.17,143.13,11.49]
[1720692530293,15.8686,143.17,143.14,11.49]
[1720692530881,15.8686,143.17,143.13,11.49]
[1720692531796,27.3586,143.17,143.12,11.49]
[1720692531972,15.8686,143.17,143.08,45.96]
[1720692532294,15.8686,143.17,143.15,11.49]
[1720692533079,32.6731,143.21,143.16,11.49]
[1720692533275,21.1831,143.21,143.17,11.49]
[1720692534197,32.6731,143.21,143.16,11.49]
[1720692534494,21.1831,143.21,143.17,11.49]
[1720692534688,21.1831,143.21,143.18,11.49]
[1720692534997,21.1831,143.21,143.17,11.49]
[1720692535999,11.49,143.2,143.11,21.8074]
[1720692536176,11.49,143.2,143.16,11.49]
[1720692536381,21.1831,143.21,143.17,11.49]
[1720692540686,21.1831,143.21,143.18,11.49]
[1720692541095,22.7398,143.25,143.16,0.17]
[1720692541319,22.7398,143.25,143.21,11.49]
[1720692541478,34.2298,143.25,143.21,11.49]
[1720692541981,22.7398,143.25,143.21,11.49]
[1720692542295,34.2298,143.25,143.21,11.49]
[1720692543122,22.7398,143.25,143.22,11.49]
[1720692543599,16.2544,143.25,143.22,11.49]
[1720692543803,16.2544,143.25,143.23,11.49]
[1720692544185,16.2544,143.25,143.24,11.49]
[1720692544504,16.2544,143.25,143.21,11.49]
[1720692544694,27.7444,143.25,143.2,11.49]
[1720692544895,11.49,143.22,143.16,30.0]
[1720692545202,15.903,143.2,143.16,41.49]
[1720692546200,15.903,143.2,143.16,11.49]
[1720692547299,27.393,143.2,143.15,11.49]
[1720692548004,11.49,143.19,143.12,0.17]
[1720692548303,11.49,143.19,143.14,11.49]
[1720692548503,27.393,143.2,143.15,11.49]
[1720692548692,15.903,143.2,143.11,0.17]
[1720692548895,15.903,143.2,143.11,0.51]
[1720692549790,6.2284,143.19,143.11,0.51]
[1720692549994,6.2284,143.19,143.11,0.17]
[1720692550631,6.2284,143.19,143.1,0.34]
[1720692550779,6.2284,143.19,143.1,0.17]
[1720692551982,6.2284,143.19,143.1,0.51]
[1720692557517,6.2284,143.19,143.1,0.34]
[1720692558323,6.2284,143.19,143.08,23.01]
[1720692558526,15.4029,143.18,143.08,23.01]
[1720692559619,15.4029,143.18,143.06,7.25985719]
[1720692559817,16.3845,143.16,143.06,7.25985719]
[1720692560206,16.3845,143.14,143.05,23.01]
[1720692561197,16.3845,143.14,143.02,23.64435719]
[1720692561417,16.3845,143.14,143.02,46.65435719]
[1720692561601,16.3845,143.14,143.02,30.26985719]
[1720692562697,16.3845,143.14,143.03,0.17]
[1720692563110,6.3083,143.13,143.03,0.17]
[1720692563410,16.57,143.12,143.04,0.17]
[1720692563621,16.57,143.12,143.02,30.26985719]
[1720692563822,16.57,143.1,143.02,30.26985719]
[1720692564144,16.57,143.1,143.02,23.01]
[1720692565032,16.57,143.1,143.04,0.17]
[1720692567538,16.57,143.1,143.06,0.17]
[1720692567904,16.57,143.1,143.06,0.34]
[1720692568498,16.57,143.1,143.09,11.51]
[1720692569116,11.51,143.16,143.09,11.68]
[1720692569117,15.1657,143.15,143.09,11.68]
[1720692569432,15.1657,143.15,143.12,11.51]
[1720692570003,15.1657,143.15,143.11,11.51]
[1720692570532,15.1657,143.15,143.12,11.51]
[1720692570721,15.1657,143.15,143.13,11.51]
[1720692571932,15.1657,143.15,143.14,11.51]
[1720692576535,15.429,143.18,143.14,11.51]
[1720692576838,15.429,143.18,143.17,11.51]
[1720692578248,15.429,143.18,143.09,7.66294399]
[1720692578423,15.429,143.18,143.1,0.51]
[1720692578622,15.429,143.18,143.14,11.51]
[1720692578844,15.429,143.18,143.05,21.3415]
[1720692579041,15.429,143.18,143.06,7.25985719]
[1720692579258,15.429,143.18,143.15,11.51]
[1720692579462,15.429,143.18,143.16,11.51]
[1720692580350,15.429,143.18,143.08,46.04]
[1720692580544,15.429,143.18,143.16,11.51]
[1720692580927,15.429,143.18,143.15,11.51]
[1720692581847,15.429,143.18,143.16,11.51]
[1720692584147,15.429,143.18,143.17,11.51]
[1720692585531,15.429,143.18,143.09,0.51]
[1720692585726,15.429,143.18,143.15,11.51]
[1720692585958,15.429,143.18,143.17,11.51]
[1720692587257,15.429,143.18,143.15,11.51]
[1720692587437,15.429,143.18,143.16,11.51]
[1720692589038,15.429,143.18,143.17,11.51]
[1720692590533,15.429,143.18,143.09,0.51]
[1720692590764,15.429,143.18,143.15,11.51]
[1720692591267,15.429,143.18,143.09,0.51]
[1720692591431,15.429,143.18,143.14,11.51]
[1720692591828,11.51,143.17,143.12,11.51]
[1720692592245,26.939,143.18,143.08,46.04]
[1720692592449,15.429,143.18,143.14,11.51]
[1720692593133,15.429,143.18,143.15,11.51]
[1720692593952,15.429,143.18,143.09,0.17]
[1720692594255,26.939,143.18,143.13,11.51]
[1720692594949,26.939,143.18,143.14,11.51]
[1720692595344,26.939,143.18,143.13,11.51]
[1720692595680,26.939,143.18,143.09,0.51]
[1720692595858,26.939,143.18,143.13,11.51]
[1720692596743,15.429,143.18,143.14,11.51]
[1720692597055,11.51,143.17,143.09,0.34]
[1720692597267,11.51,143.17,143.12,11.51]
[1720692597438,26.939,143.18,143.13,11.51]
[1720692599169,15.429,143.18,143.14,11.51]
[1720692600558,15.429,143.18,143.16,11.51]
[1720692601754,15.429,143.18,143.17,11.51]
[1720692603368,15.429,143.18,143.16,11.51]
[1720692603977,15.429,143.18,143.05,21.3415]
[1720692604268,15.429,143.18,143.12,11.51]
[1720692604562,15.429,143.18,143.13,11.51]
[1720692604756,15.429,143.18,143.08,46.04]
[1720692605161,15.429,143.18,143.14,11.51]
[1720692605757,26.939,143.18,143.13,11.51]
[1720692605950,11.51,143.17,143.12,11.51]
[1720692606552,22.3578,143.16,143.04,7.25985719]
[1720692606752,11.51,143.15,143.1,11.51]
[1720692608669,22.3578,143.16,143.03,15.429]
[1720692608872,26.5949,143.13,143.08,11.51]
[1720692609170,11.51,143.12,143.07,11.51]
[1720692609377,11.51,143.11,143.06,11.51]
[1720692610365,16.1643,143.11,143.01,46.04]
[1720692610560,11.51,143.1,143.05,11.51]
[1720692611459,11.51,143.1,143.01,46.04]
[1720692611660,16.1643,143.11,143.06,11.51]
[1720692611858,27.6743,143.11,143.07,11.51]
[1720692612061,16.1643,143.11,143.0,0.8522703]
[1720692612287,27.6743,143.11,143.06,11.51]
[1720692612977,27.6743,143.11,143.07,11.51]
[1720692613374,16.1643,143.11,143.08,11.51]
[1720692613754,16.1643,143.11,143.02,0.17]
[1720692613953,16.1643,143.11,143.07,11.51]
[1720692614159,16.1643,143.11,143.06,11.51]
[1720692614470,11.51,143.1,143.05,11.51]
[1720692614864,11.51,143.09,143.04,11.51]
[1720692615866,11.51,143.1,143.05,11.51]
[1720692616274,11.51,143.08,143.0,0.8522703]
[1720692616479,11.51,143.08,143.03,11.51]
[1720692616781,11.51,143.09,143.04,11.51]
[1720692617569,6.4077,143.08,143.04,11.51]
[1720692617783,6.4077,143.08,143.02,11.51]
[1720692617784,11.51,143.07,143.02,11.51]
[1720692618669,11.51,143.06,143.0,0.8522703]
[1720692618869,11.51,143.07,143.02,11.51]
[1720692619275,11.51,143.06,143.0,0.8522703]
[1720692619475,11.51,143.06,143.01,11.51]
[1720692619671,32.9979,143.08,143.0,0.8522703]
[1720692619879,11.51,143.05,143.0,12.3622703]
[1720692620078,11.51,143.06,143.01,11.51]
[1720692620380,11.51,143.06,143.0,0.8522703]
[1720692620381,33.5781,143.04,143.0,0.8522703]
[1720692621864,11.68,143.03,143.0,0.8522703]
[1720692622065,11.85,143.03,143.0,0.8522703]
[1720692622372,0.17,143.03,143.0,0.8522703]
[1720692622692,33.5781,143.04,143.0,0.8522703]
[1720692622891,11.51,143.02,143.0,0.8522703]
[1720692623099,11.51,143.03,143.0,0.8522703]
[1720692623391,33.5781,143.04,143.0,0.8522703]
[1720692623698,11.51,143.02,143.0,0.8522703]
[1720692623866,0.17,143.03,143.0,12.3622703]
[1720692624065,11.68,143.03,143.0,0.8522703]
[1720692624471,11.68,143.02,143.0,0.8522703]
[1720692627998,0.17,143.02,143.0,0.8522703]
[1720692628194,11.68,143.03,143.0,0.8522703]
[1720692629874,0.17,143.03,143.0,0.8522703]
[1720692630069,33.5781,143.04,143.0,0.8522703]
[1720692630275,22.0681,143.04,143.0,12.3622703]
[1720692630879,22.0681,143.04,143.0,0.8522703]
[1720692631089,33.5781,143.04,143.0,0.8522703]
[1720692631481,11.85,143.03,143.0,0.8522703]
[1720692631999,0.17,143.02,143.0,0.8522703]
[1720692632174,11.68,143.02,143.0,0.8522703]
[1720692632382,0.34,143.01,143.0,0.8522703]
[1720692632697,11.68,143.02,143.0,0.8522703]
[1720692632698,11.51,143.02,143.0,0.8522703]
[1720692633608,11.85,143.01,143.0,0.8522703]
[1720692633773,0.34,143.01,143.0,0.8522703]
[1720692634175,11.85,143.01,143.0,0.8522703]
[1720692634707,0.34,143.01,143.0,0.8522703]
[1720692635176,23.1903,143.01,142.9,0.17]
[1720692635377,23.1903,143.01,142.9,23.58]
[1720692637075,23.0203,143.01,142.92,23.07]
[1720692637279,22.8503,143.01,142.93,0.17]
[1720692638084,22.8503,143.01,142.92,23.07]
[1720692638488,22.8503,143.01,142.93,0.17]
[1720692639104,22.8503,143.01,142.92,23.07]
[1720692641203,0.34,143.0,142.92,23.07]
[1720692642888,0.17,142.99,142.88,23.07]
[1720692643110,16.5852,142.98,142.88,23.07]
[1720692643403,0.34,142.97,142.88,23.07]
[1720692644111,0.34,142.97,142.9,6.9975]
[1720692644591,16.5852,142.98,142.91,6.9972]
[1720692646607,16.5852,142.98,142.89,0.17]
[1720692646824,16.5852,142.98,142.89,0.51]
[1720692646982,16.5852,142.98,142.92,6.9968]
[1720692647713,16.5852,142.98,142.89,0.51]
[1720692647894,16.5852,142.98,142.91,6.997]
[1720692648093,16.5852,142.98,142.92,6.9969]
[1720692648610,16.5852,142.98,142.93,6.9962]
[1720692649006,16.5852,142.98,142.91,0.17]
[1720692649007,16.5852,142.98,142.92,6.9968]
[1720692649601,16.5852,142.98,142.9,30.0678]
[1720692649907,16.5852,142.98,142.9,6.9978]
[1720692650211,16.5852,142.98,142.92,6.9968]
[1720692650410,16.5852,142.98,142.93,6.9959]
[1720692651607,16.5852,142.98,142.91,23.07]
[1720692651805,16.5852,142.98,142.92,0.17]
[1720692652109,16.5852,142.98,142.91,23.07]
[1720692653717,16.5852,142.98,142.92,6.9967]
[1720692654100,16.5852,142.98,142.91,6.9972]
[1720692654508,16.5852,142.98,142.87,6.4771]
[1720692654696,16.5852,142.98,142.91,6.9972]
[1720692654901,16.5852,142.98,142.92,6.9969]
[1720692655698,16.5852,142.98,142.93,6.9963]
[1720692656616,16.5852,142.98,142.95,11.54]
[1720692657011,16.5852,142.98,142.96,11.54]
[1720692657705,16.5852,142.98,142.88,0.51]
[1720692657915,16.5852,142.98,142.95,11.54]
[1720692658721,16.5852,142.98,142.94,11.54]
[1720692659311,16.5852,142.98,142.88,0.51]
[1720692659705,28.1252,142.98,142.93,11.54]
[1720692660314,28.1252,142.98,142.94,11.54]
[1720692660315,16.5852,142.98,142.94,11.54]
[1720692660921,16.5852,142.98,142.88,0.51]
[1720692660922,16.5852,142.98,142.95,11.54]
[1720692661104,16.5852,142.98,142.96,11.54]
[1720692661508,16.5852,142.98,142.88,0.51]
[1720692661710,28.1252,142.98,142.93,11.54]
[1720692662128,16.5852,142.98,142.94,11.54]
[1720692662428,28.1252,142.98,142.93,11.54]
[1720692662724,16.5852,142.98,142.94,11.54]
[1720692663505,16.5852,142.98,142.95,11.54]
[1720692666310,6.6312,142.97,142.84,6.551]
[1720692666623,18.1712,142.97,142.92,11.54]
[1720692667233,6.6312,142.97,142.93,11.54]
[1720692668431,6.6312,142.97,142.92,11.54]
[1720692668432,18.1712,142.97,142.92,11.54]
[1720692668622,18.1712,142.97,142.93,11.54]
[1720692668623,6.6312,142.97,142.93,11.54]
[1720692669013,18.1712,142.97,142.92,11.54]
[1720692669517,11.54,142.95,142.88,6.9988]
[1720692669725,15.363,142.94,142.9,11.54]
[1720692670019,15.363,142.94,142.91,11.54]
[1720692670904,15.363,142.94,142.92,11.54]
[1720692673331,15.363,142.94,142.91,11.54]
[1720692673509,11.54,142.93,142.88,18.5388]
[1720692674209,11.54,142.93,142.88,11.54]
[1720692675331,11.54,142.93,142.88,18.5387]
[1720692677111,11.54,142.91,142.86,7.8518703]
[1720692677319,26.903,142.94,142.86,7.8518703]
[1720692677629,11.54,142.9,142.86,7.8518703]
[1720692678820,6.6092,142.93,142.87,6.9993]
[1720692679021,6.6092,142.93,142.88,6.9988]
[1720692679313,6.6092,142.93,142.87,18.5392]
[1720692679314,11.54,142.92,142.87,18.5392]
[1720692679715,11.54,142.92,142.87,6.9992]
[1720692679917,11.54,142.91,142.87,6.9992]
[1720692680735,11.54,142.91,142.86,19.3919703]
[1720692681031,11.54,142.9,142.86,7.8519703]
[1720692681829,6.6092,142.93,142.86,19.3919703]
[1720692682135,11.54,142.91,142.86,19.3919703]
[1720692682331,11.54,142.9,142.86,7.8519703]
[1720692682816,6.6092,142.93,142.86,19.3919703]
[1720692683020,11.54,142.91,142.87,6.9992]
[1720692683614,11.54,142.91,142.86,19.3919703]
[1720692684229,11.54,142.91,142.86,7.8519703]
[1720692684740,6.6092,142.93,142.87,18.5393]
[1720692684909,11.54,142.92,142.87,18.5393]
[1720692687530,11.54,142.92,142.87,11.54]
[1720692688533,11.54,142.91,142.86,19.3919703]
[1720692689508,11.54,142.9,142.86,19.3919703]
[1720692689712,11.54,142.91,142.86,19.3919703]
[1720692690126,11.54,142.9,142.86,0.8522703]
[1720692690636,6.6092,142.93,142.86,0.8522703]
[1720692691443,6.6092,142.93,142.86,12.3922703]
[1720692691737,6.6092,142.93,142.86,0.8522703]
[1720692694414,6.6092,142.93,142.86,12.3922703]
[1720692694725,6.6092,142.93,142.86,7.8518703]
[1720692694931,11.54,142.91,142.86,19.3918703]
[1720692695227,18.1492,142.93,142.88,11.54]
[1720692695756,15.363,142.94,142.89,11.54]
[1720692695912,15.363,142.94,142.89,18.5383]
[1720692696112,26.903,142.94,142.89,18.5383]
[1720692696333,26.903,142.94,142.89,11.54]
[1720692697539,11.54,142.93,142.88,11.71]
[1720692699255,11.54,142.93,142.88,18.7087]
[1720692699420,11.54,142.93,142.88,11.54]
[1720692701738,11.54,142.93,142.88,18.5388]
[1720692701930,26.903,142.94,142.89,11.54]
[1720692705235,26.903,142.94,142.88,6.9988]
[1720692705439,26.903,142.94,142.89,11.54]
[1720692706752,11.54,142.93,142.87,11.71]
[1720692706955,15.363,142.94,142.87,11.71]
[1720692706956,11.54,142.92,142.87,11.71]
[1720692707962,11.54,142.92,142.86,23.1300703]
[1720692707963,15.363,142.94,142.86,0.8522703]
[1720692708282,11.54,142.9,142.86,0.8522703]
[1720692709852,26.903,142.94,142.86,12.3922703]
[1720692710053,11.54,142.91,142.86,12.3922703]
[1720692710550,11.54,142.91,142.86,19.3920703]
[1720692711351,11.54,142.9,142.86,7.8520703]
[1720692711554,11.54,142.9,142.86,0.8522703]
[1720692712849,11.54,142.9,142.86,7.8519703]
[1720692713055,11.54,142.91,142.86,19.3919703]
[1720692713236,11.54,142.9,142.86,7.8519703]
[1720692713436,11.54,142.91,142.86,19.3919703]
[1720692713854,11.54,142.9,142.86,7.8519703]
[1720692716157,11.54,142.9,142.86,0.8522703]
[1720692716344,11.54,142.89,142.86,0.8522703]
[1720692717054,11.54,142.88,142.86,0.8522703]
[1720692717235,11.54,142.87,142.86,0.8522703]
[1720692719454,23.25,142.87,142.8,7.0025]
[1720692719943,11.54,142.84,142.8,18.5425]
[1720692720361,15.0027,142.89,142.82,7.0017]
[1720692720658,14.2973988,142.92,142.86,6.9998]
[1720692720659,11.54,142.9,142.86,6.9998]
[1720692720862,6.243,142.92,142.84,7.0006]
[1720692721070,11.54,142.87,142.81,0.17]
[1720692721239,11.54,142.86,142.81,18.5419]
[1720692721444,14.29626216,142.92,142.81,7.0019]
[1720692721445,11.54,142.85,142.81,7.0019]